Cogmind - Beta 14 @@@ ROGUE MODE // 2024.11.30 @ 17:00:35 Player: Shimmyarah Result: Core destroyed Performance ------------- Evolutions (1) 500 Regions Visited (2) 400 Robots Destroyed (72) 360 Value Destroyed (1384) 1384 Prototype IDs (7) 140 Alien Tech Used (0) 0 Bonus (106) 106 TOTAL SCORE: 2890 Bonus ------- High Alert Combat Kills 106 Cogmind --------- Core Integrity 0/400 Matter 196/300 Energy 82/100 System Corruption 8% Temperature Critical (520) Movement Treading (240) Ox1 Location -9/Materials Parts ------- > --- POWER (1) -------- (None) > --- PROPULSION (2) --- Light Treads Wheel (fused) > --- UTILITY (4) ------ Large Storage Unit Targeting Computer Utility Shielding > --- WEAPON (2) ------- Improved Medium Laser Improved Medium Laser > --- INVENTORY (15) --- Light Ion Engine Light Treads Light Treads Compact Wheel Improved Terrain Scanner Seismic Detector Hacking Suite Hacking Suite Heavy Assault Rifle Shotgun Grenade Launcher Grenade Launcher Mining Laser Welding Torch Peak State ------------ > --- POWER ------------ Light Ion Engine > --- PROPULSION ------- Light Treads Wheel > --- UTILITY ---------- Large Storage Unit Targeting Computer Targeting Computer Improved Targeting Computer > --- WEAPON ----------- Improved Medium Laser Improved Medium Laser > --- INVENTORY -------- Light Ion Engine Light Treads Compact Wheel Improved Terrain Scanner Seismic Detector Utility Shielding Hacking Suite Hacking Suite Heavy Assault Rifle Shotgun Shotgun Grenade Launcher Grenade Launcher Mining Laser Welding Torch [Rating: 16] Favorites ----------- Power Light Ion Engine Engine Light Ion Engine Propulsion Light Treads Treads Light Treads Leg Aluminum Leg Wheel Compact Wheel Utility Large Storage Unit Device Seismic Detector Storage Large Storage Unit Processor Targeting Computer Protection Utility Shielding Weapon Light Cannon Energy Gun Improved Medium Laser Energy Cannon Beam Cannon Ballistic Gun Shotgun Ballistic Cannon Light Cannon Launcher Grenade Launcher Special Weapon Mining Laser Build | -11 -10 -9 ------- Run | Yrd Mat Mat Slots Evolved 2 | . . 2 Power . | . . . Propulsion . | . . . Utility 2 | . . 2 Weapon . | . . . Parts Attached 69 | 2 36 31 Power 3 | . 1 2 Engine 3 | . 1 2 Core . | . . . Reactor . | . . . Propulsion 21 | . 12 9 Treads 14 | . 7 7 Leg . | . . . Wheel 7 | . 5 2 Hover . | . . . Flight . | . . . Utility 19 | 1 11 7 Device 8 | 1 6 1 Storage 4 | . 4 . Processor 3 | . . 3 Hackware . | . . . Protection 4 | . 1 3 Artifact . | . . . Weapon 26 | 1 12 13 Energy Gun 3 | . . 3 Energy Cannon 1 | . 1 . Ballistic Gun 11 | 1 2 8 Ballistic Cannon 6 | . 5 1 Launcher 1 | . 1 . Special Weapon 4 | . 3 1 Impact Weapon . | . . . Slashing Weapon . | . . . Piercing Weapon . | . . . Special Melee Weapon . | . . . Unidentified Prototypes 2 | . . 2 Parts Lost 5 | . 1 4 Power 2 | . 1 1 Propulsion . | . . . Utility 2 | . . 2 Weapon 1 | . . 1 Highest Loss Streak 2 | . 1 2 To Critical Strikes . | . . . Average Slot Usage (%) 97 | . 96 99 Engine 12 | . 13 10 Treads 16 | . 15 18 Leg 2 | . 5 . Wheel 5 | . 7 3 Device 7 | . 12 . Storage 12 | . 14 11 Processor 10 | . . 25 Protection 3 | . 1 6 Energy Gun 2 | . . 6 Ballistic Gun 8 | . 5 12 Ballistic Cannon 10 | . 15 2 Special Weapon 1 | . 3 . Peak Build Rating 16 | 8 9 16 Average Rating 10 | 6 7 13 On Entrance 7 | 6 8 8 Naked Turns . | . . . Heaviest Build 107 | 11 107 32 Greatest Support 40 | 20 40 40 Greatest Overweight (x) 6 | . 6 2 Average Overweight (x) . | . . . Largest Inventory Capacity 25 | 8 25 15 Average Capacity 14 | 8 14 15 Most Carried 15 | 8 15 15 Average Carried 11 | 7 9 14 Final Capacity 15 | 8 15 15 Final Carried 15 | 8 15 14 Class Distribution -------------------- 92% | Mutant 7% | Scavenger-Mutant Dominant Class ---------------- Mutant | -10/Materials Mutant | -9/Materials Resources | -11 -10 -9 ----------- Run | Yrd Mat Mat Matter Collected 1826 | 274 547 1005 Remotely . | . . . Salvage Created 1903 | 213 284 1406 Parts 142 | 16 27 99 Haulers Intercepted 7 | . 2 5 Recyclers Shooed 1 | . 1 . Parts Field Recycled . | . . . Retrieved Matter . | . . . Parts Self-Destructed . | . . . Prevented . | . . . Kills | -11 -10 -9 ------- Run | Yrd Mat Mat Combat Hostiles Destroyed 47 | . 13 34 Melee 1 | . 1 . Guns 32 | . 3 29 Cannons 14 | . 9 5 Classes Destroyed 11 | 3 5 3 Worker 4 | 1 . 3 Builder 1 | . 1 . Tunneler 5 | 5 . . Hauler 7 | . 2 5 Recycler 1 | 1 . . Operator 2 | . . 2 Watcher 5 | . 3 2 Swarmer 22 | . 9 13 Grunt 15 | . 4 11 Brawler 2 | . . 2 Sentry 8 | . . 8 Best Kill Streak 6 | 2 3 6 Combat Bots Only 5 | . 3 5 Max Kills in Single Turn 2 | 1 1 2 Gunslinging 1 | . . 1 Exploded . | . . . Melee 1 | . 1 . Uniques/NPCs Destroyed . | . . . Combat | -11 -10 -9 -------- Run | Yrd Mat Mat Hostile Shots Fired 243 | . 79 164 Missed 73 | . 19 54 Damage Taken 1917 | . 572 1345 Core 458 | . 57 401 Absorbed by Shields . | . . . Redirected to Shielding 29 | . 3 26 Regen/Repaired (Parts) 86 | . . 86 Core Remaining (%) 88 | 100 77 . Volleys Fired 215 | 27 79 109 Largest 2 | 2 2 2 Hottest 120 | 40 120 112 Shots Fired 404 | 54 139 211 Gun 281 | 54 39 188 Cannon 103 | . 81 22 Launcher 1 | . 1 . Special 19 | . 18 1 Kinetic 302 | 54 107 141 Thermal 101 | . 31 70 Explosive 1 | . 1 . Electromagnetic . | . . . Robot Hit Streak 24 | 15 8 24 Robot Miss Streak 5 | 2 5 4 Penetration Max . | . . . Secondary Targets 4 | . . 4 Max Gunslinging Chain 1 | . . 1 Shots Hit Robots 258 | 34 63 161 Core Hits 102 | 14 20 68 Critical Kills . | . . . Critical Parts Destroyed 2 | 1 1 . Critical Strikes 12 | 1 5 6 Burn 4 | . . 4 Destroy 2 | 1 1 . Blast 6 | . 4 2 Melee Attacks . | . . . Impact . | . . . Slashing . | . . . Piercing . | . . . Sneak Attacks . | . . . Combat Hostiles . | . . . Follow-up Attacks . | . . . Damage Inflicted 3908 | 266 931 2711 Guns 2776 | 266 143 2367 Cannons 1063 | . 769 294 Explosions . | . . . Melee . | . . . Ramming 69 | . 19 50 Kinetic 2752 | 266 754 1732 Thermal 1087 | . 158 929 Explosive . | . . . Electromagnetic . | . . . Impact . | . . . Slashing . | . . . Piercing . | . . . Highest Corruption 8 | . . 8 Average Corruption 4 | . . 4 Corruption Purged . | . . . Corruption Blocked . | . . . Effects 39 | . . 39 Message Errors 17 | . . 17 Matter Fused 5 | . . 5 Heat Flow Errors 3 | . . 3 Energy Discharges 5 | . . 5 Parts Fused 1 | . . 1 Data Loss (minor) 6 | . . 6 Data Loss (major) 1 | . . 1 Alerts 1 | . . 1 Overload Shots . | . . . Overflow Damage 27 | . 27 . Projectiles 27 | . 27 . Explosions . | . . . Melee . | . . . Knockbacks 11 | . 10 1 Impact 1 | . 1 . Kinetic 10 | . 9 1 Secondary . | . . . Self-Inflicted Damage . | . . . Shots . | . . . Rammed 12 | . 4 8 Targets Rammed 17 | . 7 10 Kicked 2 | . 2 . Crushed 3 | . 1 2 Highest Temperature 520 | . 120 520 Average Temperature 63 | . 29 105 Received Heat Transfer 585 | . 165 420 Effects 10 | . . 10 Energy Bleed 1 | . . 1 Matter Decay 4 | . . 4 Short Circuit 1 | . . 1 Damage (minor) 1 | . . 1 Damage (major) 2 | . . 2 Damage (core) 1 | . . 1 Siege Activations . | . . . Robots Corrupted . | . . . Combat Hostiles . | . . . Parts Fried . | . . . Impact Corruptions . | . . . Robots Melted 1 | . . 1 Combat Hostiles . | . . . Parts Melted 10 | . . 10 Heat Transferred 2439 | . 333 2106 Parts Sabotaged . | . . . Parts Stolen . | . . . Parts Stripped . | . . . Power Chain Reactions . | . . . Alert | -11 -10 -9 ------- Run | Yrd Mat Mat Peak Influence 568 | 35 270 568 Initial 79 | . 22 79 Average 225 | 18 164 322 Maximum Alert Level 2 | . 1 2 Low Security (%) 40 | 100 52 19 Level 1 48 | . 47 54 Level 2 10 | . . 25 Level 3 . | . . . Level 4 . | . . . Level 5 . | . . . High Security . | . . . Max Security . | . . . Squads Dispatched 3 | . . 3 Investigation . | . . . Extermination . | . . . Reinforcement 2 | . . 2 Assault 1 | . . 1 Garrison . | . . . Intercept . | . . . Searches Triggered . | . . . Construction Impeded . | . . . Haulers Reinforced . | . . . Active Scanning Responses . | . . . Cargo Convoy Interrupts . | . . . Stealth | -11 -10 -9 --------- Run | Yrd Mat Mat Distress Signals 4 | . 2 2 Communications Jammed . | . . . Distress Signals . | . . . Times Spotted 86 | . 32 54 Peak Tracking Total 6 | . 5 6 Tactical Retreats 11 | . 9 2 Traps | -11 -10 -9 ------- Run | Yrd Mat Mat Traps Triggered 4 | . 1 3 Indirectly . | . . . Trap Hack Attempts . | . . . Triggered . | . . . Disarmed . | . . . Reprogrammed . | . . . Reused . | . . . Traps Extracted . | . . . Installed . | . . . Triggered . | . . . Machines | -11 -10 -9 ---------- Run | Yrd Mat Mat Machines Disabled 2 | . 2 . Max in Single Turn 1 | . 1 . Machines Repaired . | . . . Machines Dismantled . | . . . Machines Sabotaged . | . . . Overloaded Fab Kills . | . . . Hacking | -11 -10 -9 --------- Run | Yrd Mat Mat Machines Accessed 21 | . 11 10 Terminals 14 | . 8 6 Fabricators . | . . . Repair Stations 2 | . 1 1 Recycling Units 3 | . 2 1 Scanalyzers 2 | . . 2 Garrison Access . | . . . Total Hacks 87 | . 33 54 Successful 59 | . 18 41 Failed 28 | . 15 13 Catastrophic . | . . . Database Lockouts . | . . . Manual 36 | . 18 18 Terminals 53 | . 27 26 Fabricators . | . . . Repair Stations 4 | . 2 2 Recycling Units 7 | . 4 3 Scanalyzers 23 | . . 23 Garrison Access . | . . . Terminal Hacks 12 | . 6 6 Robot Analysis 2 | . 1 1 Prototype ID Bank 4 | . 3 1 Terminal Index 2 | . 1 1 Maintenance Status 1 | . . 1 Registered Components 2 | . 1 1 Registered Prototypes 1 | . . 1 Fabricator Hacks . | . . . Repair Station Hacks 2 | . . 2 Scan Component 1 | . . 1 Repair 1 | . . 1 Recycling Unit Hacks 2 | . 1 1 Retrieve Components 2 | . 1 1 Scanalyzer 22 | . . 22 Insert Component 11 | . . 11 Analyze 11 | . . 11 Garrison Access Hacks . | . . . Unauthorized Hacks 21 | . 11 10 Terminals 17 | . 8 9 Track 2 | . 2 . Assimilate 3 | . 3 . Botnet 6 | . 2 4 Operators 2 | . 1 1 Skim 4 | . . 4 Fabricators . | . . . Repair Stations 1 | . 1 . Mechanics 1 | . 1 . Recycling Units 3 | . 2 1 Reject 3 | . 2 1 Scanalyzers . | . . . Garrison Access . | . . . Data Cores Recovered . | . . . Used . | . . . Hacking Detections 19 | . 10 9 Full Trace Events . | . . . Feedback Events . | . . . Feedback Blocked . | . . . Robot Schematics Acquired . | . . . Robots Built . | . . . Authchips . | . . . Time . | . . . Total Robot Build Rating . | . . . Part Schematics Acquired 11 | . . 11 Parts Built . | . . . Authchips . | . . . Time . | . . . Total Part Build Rating . | . . . Parts Repaired 1 | . . 1 Time 32 | . . 32 Parts Recycled . | . . . Recycled Matter . | . . . Retrieved Matter . | . . . Retrieved Components 6 | . 2 4 Parts Scanalyzed 11 | . . 11 Part Schematics Acquired 11 | . . 11 Parts Damaged . | . . . Bothacking | -11 -10 -9 ------------ Run | Yrd Mat Mat Used RIF Installer . | . . . Robots Hacked . | . . . Non-combat . | . . . Combat . | . . . Robot Hacks Applied . | . . . Relay Couplers Released . | . . . Fabnet Peak Effective % . | . . . Robots Rewired . | . . . Allies Hacked . | . . . Hacks Repelled . | . . . Allies | -11 -10 -9 -------- Run | Yrd Mat Mat Total Allies 1 | . 1 . Largest Group 1 | . 1 . Highest-Rated Group 10 | . 10 . Highest-Rated Ally 10 | . 10 . Total Orders . | . . . Ally Attacks . | . . . Total Damage . | . . . Kills . | . . . Allies Corrupted . | . . . Allies Melted . | . . . Intel | -11 -10 -9 ------- Run | Yrd Mat Mat Robot Analysis Total 2 | . 1 1 Derelict Logs Recovered . | . . . Drone Launches . | . . . Drone Recoveries . | . . . Exploration | -11 -10 -9 ------------- Run | Yrd Mat Mat Turns Passed 6106 | 153 3451 2502 Spaces Moved 3719 | 60 2253 1406 Core . | . . . Treads 1406 | . 575 831 Legs 503 | 60 443 . Wheels 1810 | . 1235 575 Hover . | . . . Flight . | . . . Fastest Speed 100 | 120 100 110 Average Speed 134 | 120 129 141 Slowest Speed 320 | 120 320 240 Overloaded Moves . | . . . Propulsion Burnouts . | . . . Robots Hopped . | . . . Cave-ins Triggered . | . . . Exploration Rate (%) 59 | 4 99 74 Regions Visited 2 Branch Regions . Pre-discovered Areas . | . . . Known Exits Taken . | . . . Unknown Exits Taken 2 | 1 1 . Scrap Searched . | . . . Spaces Dug 17 | . 16 1 Terrain Destroyed 25 | . 24 1 Melee . | . . . Projectile 17 | . 16 1 AOE 8 | . 8 . Terrain Rammed . | . . . Walls Destroyed . | . . . Machines Disabled . | . . . Actions | -11 -10 -9 --------- Run | Yrd Mat Mat Total 4413 | 97 2612 1704 Wait 261 | 7 137 117 Move 3717 | 59 2252 1406 Hop . | . . . Pick Up 69 | 2 57 10 Fast Attach 7 | 1 . 6 Attach 9 | . 6 3 Detach 2 | . 2 . Swap 54 | 1 30 23 Drop 62 | . 42 20 Fire 215 | 27 79 109 Melee . | . . . Ram . | . . . Kick 2 | . 2 . Crush 15 | . 5 10 Escape Stasis . | . . . Rewire . | . . . Trap . | . . . Miscellaneous . | . . . Route ------- -11/Scrapyard -10/Materials (discovered 5 exits: *Mat x3 / [*Min] / [*Sub]) -9/Materials (discovered 2 exits: [*Mat x2]) History --------- Turn | Location | Event 11 | -11/Scrapyard | Discovered new exit (range 2) 154 | -11/Scrapyard | Entered Materials 316 | -10/Materials | Build established: Mutant 385 | -10/Materials | Discovered new exit (range 12) 558 | -10/Materials | Discovered new exit (range 7) 689 | -10/Materials | Discovered new exit (range 6) 1246 | -10/Materials | Discovered new exit (range 12) 1804 | -10/Materials | Discovered new exit (range 7) 3605 | -10/Materials | Entered another Materials area 3605 | -9/Materials | Evolved 2 slots: Utility x2 4457 | -9/Materials | Discovered new exit (range 16) 4619 | -9/Materials | Build established: Scavenger-Mutant 5019 | -9/Materials | Repaired Shotgun 5042 | -9/Materials | Build established: Mutant 5600 | -9/Materials | Discovered new exit (range 15) 5966 | -9/Materials | Core integrity fell below 50% 6005 | -9/Materials | First assault squad dispatched 6091 | -9/Materials | Core integrity fell below 20% 6108 | -9/Materials | Core destroyed Last Messages --------------- 06099_ Acquired 7 matter. 06099_ K-01 Serf collects debris. 06101_ Overheating: Matter decay (-54). 06101_ K-01 Serf collects debris. 06102_ Overheating: Energy bleed (-21). 06102_ A QMHEGQ5E1HZC:DCCN&0CLSX 06103_ Overheating: Imp. Medium Laser damaged (-12). 06103_ Overheating: Targeting Computer damaged (-1). 06104_ Overheating: Matter decay (-21). 06106_ G-34 Mercenary heat spikes uncontrollably. 06106_ G-34 Mercenary overheating. 06106_ R-06 Scavenger collects Lgt. Treads. 06107_ G-34 Mercenary overheating. 06107_ Sml. Laser melted. 06107_ G-34 Mercenary destroyed. 06107_ K-01 Serf collects debris. 06108_ Overheating: Core damaged (-60). Map ----- +----------------------------------------------------+ | ?????????????????????????????????????????????#[ | | ?????????????????????????????????????????????# "" | | ?????????????????????????????????????????????# "" | | ?????????????????????????????????????????????# S | | ?????????????????????????????????????????????# | | ?????????????????????????????????????????????# | | ?????????????????????????????????????????????####+ | | ????????????????????????????????????????????????# | | ????????????????????????????????????????????????# | | ????????????????????????????????????????????????# | | ??????????????????? ??????????????????????????# | | ??????????????????? ??????????????????????????# | | ??????????????????? ?????????????????????????# | | ???????????????????# ?????????????????????????# | | ???????????????????# ?????????????????????????# | | ???????????????????# ?????????????????????????# | | ???????????????????# ?????????????????????????# | | ???????????????????# ?########???????????????### | | ???????????????????# ?# #?????????????# | | ???????????????????# ##] """ #?????????????# | | ???????????????????# ## """ #?????????????# | | ??????????????????## ## """ #?????????????# | | ?????????#+####+### k# #?????????????# | | ???????? k#* """ #?????????????# | | ???????? r+=! """ #?????????????##+ | | ???????? #@k """ #??????????????# | | ???????????######## # #??????????????# | | ??????????????????## ########################## | | ???????????????????# % % "%" | | ???????????????????# [% " | | ???????????????????# [%% | | ???????????????????# ###################%####### | | ????????????????? #??????????????# =[=* ## | | ??????????????? #??????????????# *""" ## | | ?????????????? #??????????????# """ ## | | ????????????? #??????????????# """ ## | | ?????????????#### ???????????????# ## | | ????????????????# ???????????????# """ # | | ????????????????###### ???????????????# """ ### | | ?????????????????????? ???????????????# """ #?? | | ?????????????????????? ???????????????# #?? | | ?????????????????????? ???????################+#?? | | ?????????????????????# ???????# ###### ### | | ?????????????????????# ???????# + | | ?????????????????????# ???????# ########## | | ?????????????????????# ???????# #????????? | | ?????????????????????# ???????# #????????? | | #????????????????????# ???????# #????????? | | #????????????????????# ###????# ########## | | #????????????????????# #????# # | +----------------------------------------------------+ Best States ------------- Heat Dissipation 28 Energy Generation 10 Energy Capacity 250 Matter Stores 300 Matter Capacity 300 Sight Range 16 Terrain Scan Range 16 Terrain Scan Density 10 Power Shielding 33 Utility Shielding 33 Evasion (%) 55 Targeting Accuracy 16 Recoil Reduction 2 Item Schematics ----------------- Grenade Launcher | -9/Materials | Scanalyzed Hacking Suite | -9/Materials | Scanalyzed Seismic Detector | -9/Materials | Scanalyzed Hvy. Assault Rifle | -9/Materials | Scanalyzed Mining Laser | -9/Materials | Scanalyzed Lgt. Treads | -9/Materials | Scanalyzed Shotgun | -9/Materials | Scanalyzed Lgt. Ion Engine | -9/Materials | Scanalyzed Imp. Terrain Scanner | -9/Materials | Scanalyzed Utility Shielding | -9/Materials | Scanalyzed Imp. Medium Laser | -9/Materials | Scanalyzed Robot Schematics ------------------ None Fabricated ------------ Nothing Alien Tech Used ----------------- None Achievements -------------- None Challenges ------------ None Game ------ Seed SystemAssemblyFacilitator Manual? 0 Play Time 00:53:52 Cumulative 81.2 hours Start 2024.11.30 @ 16:02:13 End 2024.11.30 @ 17:00:35 Sessions 1 Manual Loads 0 Difficulty Rogue Special Mode None Game No. 120 Rogue 120 Adventurer 0 Explorer 0 Win Type - Total 0 Types 0/0/0/0/0/0/0/0/0 Lore% 54 Gallery% 43 Achievement% 32 Wizard Run 0 Options --------- Layout 1 ASCII 0 Keyboard 0 Movement Arrows Keybinds 0 Fullscreen 1 Font 24/Smallcaps Map View 50x40 Zoom Use 6% Tactical HUD 1 Map Filters NONE Filters NONE Steam 1 RUN: 16cc862d-d780-48ca-80d1-fc1c000b3ef0